Workbook

Sheet Instrucciones
D5: Objetivo: | E5: Determinar y controlar los inductivos de costos mediante las fases de ejecución y actividades a realizar, con el fin de realizar cortes periodicos para seguimiento y tomas de desición.
D11: Este modelo se divide en 6 partes:
D13: Menu: | E13: Le permitira nevagar por los items que desee consultar, grabar y cerrar el modelo cuando usted lo desee
D16: Items propuestos: | E16: Aquí encontrara el nombre del proyecto y presupuesto inicial para realizar su ejecución. Favor diligencie los espacios en color verde.
D19: Distribucción Presupuesto: | E19: Le permite determinar los valores proyectados en los costos primarios para realizar la ejecución de su proyecto. Favor diligencie los espacios en color verde.
D22: Gastos reales: | E22: Le permite llevar acabo en tiempo real los valores reales de los costos por fases/actividades, la cual le indicara señales de alerta al incurrir un valor superior al proyectado. Favor diligencie los espacios en color verde.
D25: Detalles por actividad: | E25: Le permite consultar la agrupación por fechas las actividades desarrolladas y el valos de los mismos. Puede filtrar por actividad si lo desea
D28: Grafico: | E28: Mediante barras, graficamente puede conocer los valores incurridos en cada actividad.
D30: Costos ABC: | E30: Le permite identificar los costos incurridos reales por actividades en cualquier momento, acompañado de una grafica para mejor interpretación. Por ultimo se encuentra una grafica en la cual se ayuda a visualizar cual fue el impacto que tuvo la organización en los costos por actividad desde lo presupuestado hasta los costos reales incurridos.
D33: Estado de costos: | E33: En esta sección podra visualizar sencillo estado de Costos comparativos en la cual se encuentra el proyectado y e ejecutado, en donde podra visualizar la brecha presentada si lo hay.
C36: Esta herramienta fue presentada por la estudiante Cindy Benitez para su trabajo de investigación. Dando respuesta a una alternativa financiera en la mejora de la empresa.

Sheet Menu
D3: MODELO DE COSTOS ABC
C9: MENU

Sheet Items presupuestados
B1: PRESUPUESTO INICIAL PROYECTO REMODELACIÓN CR1-0087
B4: ITEM | C4: DESCRIPCION | D4: ASIGNACION COSTOS INICIALES
B5: 1 | C5: PRELIMINARES | D5: UND | E5: CANT | F5: V/UNITARIO | G5: V/TOTAL
B6: 1.1 | C6: REPLANTEO | D6: M2 | E6: =8.6*4 -> 34.4 | F6: 2200 | G6: =+E6*F6 -> 75680
B7: 1.2 | C7: EXCAVACIONES | D7: M3 | E7: =+(8.57+1.25+2)*0.8*0.5 -> 4.728 | F7: 22000 | G7: =+E7*F7 -> 104016
B8: 1.3 | C8: RELLENOS EN MATERIAL PLACA DE CONTRAPISO AMPLIACION | D8: M3 | E8: =8.57*3.33*0.2 -> 5.70762 | F8: 75000 | G8: 428071.5
B9: 1.4 | C9: DEMOLICION MUROS ESP 12,5 CM | D9: M2 | E9: =1*2.2+(1.2*1)+(1.2*1) -> 4.6 | F9: 17900 | G9: 82340
B10: 1.7 | C10: RETIRO DE ESCOMBROS | D10: M3 | E10: 4 | F10: 54000 | G10: 216000
B11: 1.8 | C11: RETIRO DE MATERIAL EXCAVADO | D11: M3 | E11: =+E7 -> 4.728 | F11: 45000 | G11: 212760
E12: VALOR ITEM | G12: =SUM(G6:G11) -> 1118867.5
B13: ITEM | C13: DESCRIPCION | D13: ASIGNACION COSTOS INICIALES
B14: 2 | C14: ESTRUCTURAS | D14: UND | E14: CANT | F14: V/UNITARIO | G14: V/TOTAL
B15: 2.1 | C15: RELLENOS CIMENTACION VIGAS EN MATERIAL GRANULAR | D15: M3 | E15: 3 | F15: =+F8 -> 75000 | G15: =+E15*F15 -> 225000
B16: 2.2 | C16: RELLENOS PIEDRA RAJON PARA ZAPATAS CIMENTACION | D16: M3 | E16: 1 | F16: =500000/6 -> 83333.33333 | G16: =+E16*F16 -> 83333.33333
B17: 2.3 | C17: VIGAS DE CIMENTACION 20 X 30 | D17: ML | E17: =1.25+8.57+2 -> 11.82 | F17: 60300 | G17: =+E17*F17 -> 712746
B18: 2.4 | C18: PLACA DE CIMENTACION O CONTRAPISO 15 CM | D18: M2 | E18: =2*9 -> 18 | F18: 85000 | G18: 1530000
B19: 2.5 | C19: DOVELAS EN MUROS 15X15 | D19: ML | E19: 12 | F19: 75000 | G19: 900000
B20: 2.6 | C20: VIGAS CORONAMIENTO 15X20 | D20: ML | E20: =1.25+8.57+2+2 -> 13.82 | F20: 58000 | G20: 801560
B21: 2.7 | C21: DINTELES EN MAMPOSTERIA | D21: ML | E21: =4+2+2.5 -> 8.5 | F21: 35000 | G21: 297500
B22: 2.8 | C22: ZAPATAS DE CONCRETO | D22: UND | E22: 2 | F22: 175000 | G22: 350000
B23: 2.9 | C23: CONSTRUCCION DE PLACAS DE ENTREPSIO EN SISTEMA PLACA FACIL | D23: M2 | E23: 25 | F23: 110000 | G23: 2750000
B24: 2.1 | C24: CONSTRUCCION DE ANDEN EN CONCRETO DE ESPESOR 10 CM INCLUYE DESCAPTTE EXCAVACION Y RRELLENO EN MATERIAL GRANULAR | D24: M2 | E24: 12 | F24: 133450 | G24: 1601400
B25: 2.11 | C25: SUMINISTRO Y COLOCACION ACERO DE REFUERZO PDR GR 60 | D25: KG | E25: 700 | F25: 2650 | G25: 1855000
E26: VALOR ITEM | G26: =SUM(G15:G25) -> 11106539.33
B27: ITEM | C27: DESCRIPCION | D27: ASIGNACION COSTOS INICIALES
B28: 3 | C28: MAMPOSTERIA PAÑETES Y PINTURA | D28: UND | E28: CANT | F28: V/UNITARIO | G28: V/TOTAL
B29: 3.1 | C29: MUROS EN BLOQUE # 4 | D29: M2 | E29: =1.25+8.6+2+2*3.3 -> 18.45 | F29: 35000 | G29: =+E29*F29 -> 645750
B30: 3.2 | C30: PAÑETE INTERIOR ESP 3,0 CM | D30: M2 | E30: =+E29*2 -> 36.9 | F30: 21000 | G30: =+E30*F30 -> 774900
B31: 3.3 | C31: FILOS | D31: ML | E31: =3.5*3+4+4 -> 18.5 | F31: 2200 | G31: 40700
B32: 3.4 | C32: ALISTADO DE PISOS | D32: M2 | E32: 25 | F32: 21000 | G32: 525000
B33: 3.5 | C33: IMPERMEABILIZACION TERRAZA CON MEMBRANA | D33: M2 | E33: 25 | F33: 52000 | G33: =+E33*F33 -> 1300000
B34: 3.6 | C34: PINTURA VINILO | D34: M2 | E34: =+E30*1.3 -> 47.97 | F34: 19000 | G34: 911430
E35: VALOR ITEM | G35: =SUM(G29:G34) -> 4197780
B36: ITEM | C36: DESCRIPCION | D36: ASIGNACION COSTOS INICIALES
B37: 4 | C37: INSTALACIONES ELECTRICAS | D37: UND | E37: CANT | F37: V/UNITARIO | G37: V/TOTAL
B38: 4.1 | C38: PUNTO DE TOMA DOBLE CON INTERRUPTOR | D38: UND | E38: 3 | F38: =65000+15000 -> 80000 | G38: =+E38*F38 -> 240000
B39: 4.2 | C39: PUNTO DE ILUMINACION INC BALA HALOGENA 5 VATIOS | D39: UND | E39: 3 | F39: 65000 | G39: 195000
B40: 4.3 | C40: PUNTO DE VOZ Y DATOS | D40: UND | E40: 1 | F40: 85000 | G40: 85000
B41: 4.4 | C41: INSTALACION TUBERIA ALIMENTACION 3/4" INCLUIDO REGATAS Y RESANES | D41: ML | E41: 30 | F41: 25000 | G41: 750000
E42: VALOR ITEM | G42: =SUM(G38:G41) -> 1270000
B43: ITEM | C43: DESCRIPCION | D43: ASIGNACION COSTOS INICIALES
B44: 5 | C44: INSTALACIONES EN TECHOS | D44: UND | E44: CANT | F44: V/UNITARIO | G44: V/TOTAL
B45: 5.1 | C45: INSTALACION DE TECHOS EN DRYWALL | D45: M2 | E45: 24 | F45: 48000 | G45: =+E45*F45 -> 1152000
B46: 5.2 | C46: SUMINISTRO E INSTALACION DE CABALLETES EN FIBROCEMENTO TIPO TEJA ESPAÑOLA | D46: ML | E46: 13 | F46: 35000 | G46: 455000
E47: VALOR ITEM | G47: =SUM(G45:G46) -> 1607000
B48: ITEM | C48: DESCRIPCION | D48: ASIGNACION COSTOS INICIALES
B49: 6 | C49: CARPINTERIA Y OTROS | D49: UND | E49: CANT | F49: V/UNITARIO | G49: V/TOTAL
B50: 6.1 | C50: SUMINISTRO E INSTALACION DE PUERTAS DE MADERA 80 CM INCLUIDO MARCO Y CHAPA | D50: UND | E50: 16 | F50: 320000 | G50: =+E50*F50 -> 5120000
B51: 6.2 | C51: VENTANERIA ALUMINIO ANONIZADO (2M X 1M) | D51: UND | E51: 9 | F51: 225000 | G51: 2025000
B52: 6.3 | C52: ADECUACION ZONA DE PARQUEADERO INCLUYE EXCAVACION DE HASTA 40 CM DE TERRENO ORGANICO, COLOCACION DE MATERIAL DE ESCOMBRO , MATERIAL DE ESCOMBRO LIMPIO Y RECEBO DE SELLO BASE COMPACTADO Y TERMINACION EN PIEDRA DE RIO | D52: M2 | E52: 62.5 | F52: 85000 | G52: 5312500
B53: 6.4 | C53: ESTRUCTURA DE CUBIERTA EN POLICARBONATO O SIMILAR | D53: KG | E53: 75 | F53: 7500 | G53: 562500
E54: VALOR ITEM | G54: =SUM(G50:G53) -> 13020000
F55: TOTAL | G55: =+G54+G47+G42+G35+G26+G12 -> 32320186.83

Sheet Distribuccion Presupuesto
B3: DISTRIBUCION PRIMARIA
B8: ACTIVIDAD/COSTOS | C8: PRELIMINARES | D8: ESTRUCTURAS | E8: MAMPOSTERIA PAÑETES Y PINTURA | F8: INSTALACIONES ELECTRICAS | G8: INSTALACIONES EN TECHOS | H8: CARPINTERIA Y OTROS
B9: MATERIALES | C9: 346848.925 | D9: 3443027.193 | E9: 1301311.8 | F9: 393700 | G9: 498170 | H9: 4036200
B10: MANO DE OBRA | C10: 671320.5 | D10: 6663923.6 | E10: 2518668 | F10: 762000 | G10: 964200 | H10: 7812000
B11: GASTOS INDIRECTOS: | C11: 100698.075 | D11: 999588.54 | E11: 377800.2 | F11: 114300 | G11: 144630 | H11: 1171800
B12: TOTAL GASTOS INDIRECTOS | C12: =SUM(C9:C11) -> 1118867.5 | D12: =SUM(D9:D11) -> 11106539.33 | E12: 4197780 | F12: 1270000 | G12: 1607000 | H12: 13020000
C13: =SUM(C12:H12) -> 32320186.83
B16: ASIGNACION CIF (DISTRIBUCION SECUNDARIA) | D16: Tasa
B17: PRELIMINARES | C17: =+C12*D17 -> 38733.20687 | D17: =+C12/$C$13 -> 0.03461822501
B18: ESTRUCTURAS | C18: =D18*D12 -> 3816661.599 | D18: =+D12/$C$13 -> 0.3436409384
B19: MAMPOSTERIA PAÑETES Y PINTURA | C19: =D19*E12 -> 545212.0998 | D19: =+E12/$C$13 -> 0.1298810561
B20: INSTALACIONES ELECTRICAS | C20: =D20*F12 -> 49903.79568 | D20: =+F12/$C$13 -> 0.03929432731
B21: INSTALACIONES EN TECHOS | C21: =D21*G12 -> 79902.0443 | D21: =+G12/$C$13 -> 0.04972124723
B22: CARPINTERIA Y OTROS | C22: =D22*H12 -> 5245031.561 | D22: =+H12/$C$13 -> 0.4028442059
B23: TOTAL CIF | C23: =SUM(C17:C22) -> 9775444.307

Sheet Gastos reales
E3: A continuación seleccione la descripción a diligenciar
E18: Regreso al menú
C32: ='Items presupuestados'!C5 -> PRELIMINARES
C33: Fecha | D33: Ítems | E33: Descripción | F33: Importe | G33: Acumulado | H33: Indicador
C34: 2017-06-01 | D34: 1.1 | E34: =IF(D34="","",VLOOKUP(D34,'Items presupuestados'!B6:C11,2,FALSE)) -> REPLANTEO | F34: 83248 | G34: =+'Items presupuestados'!G6 -> 75680 | H34: =IF(F34=G34,1,IF(F34>G34,2)) -> 2 | GV34: =IF(D34="","",VLOOKUP(D34,'Items presupuestados'!$B$6:$G$11,6)) -> 75680
C35: 2017-06-01 | D35: 1.2 | E35: =IF(D35="","",VLOOKUP(D35,'Items presupuestados'!B6:C11,2,FALSE)) -> EXCAVACIONES | F35: 114417.6 | G35: =+'Items presupuestados'!G7 -> 104016 | H35: =IF(F35=G35,1,IF(F35>G35,2)) -> 2 | GV35: =IF(D35="","",VLOOKUP(D35,'Items presupuestados'!$B$6:$G$11,6)) -> 104016
C36: 2017-06-01 | D36: 1.3 | E36: =IF(D36="","",VLOOKUP(D36,'Items presupuestados'!B7:C12,2,FALSE)) -> RELLENOS EN MATERIAL PLACA DE CONTRAPISO AMPLIACION | F36: 470878.65 | G36: =+'Items presupuestados'!G8 -> 428071.5 | H36: 2 | GV36: =IF(D36="","",VLOOKUP(D36,'Items presupuestados'!$B$6:$G$11,6)) -> 428071.5
C37: 2017-06-05 | D37: 1.4 | E37: =IF(D37="","",VLOOKUP(D37,'Items presupuestados'!B8:C12,2,FALSE)) -> DEMOLICION MUROS ESP 12,5 CM | F37: 90574 | G37: =+'Items presupuestados'!G9 -> 82340 | H37: 2 | GV37: =IF(D37="","",VLOOKUP(D37,'Items presupuestados'!$B$6:$G$11,6)) -> 82340
C38: 2017-06-05 | D38: 1.7 | E38: =IF(D38="","",VLOOKUP(D38,'Items presupuestados'!B6:C11,2,FALSE)) -> RETIRO DE ESCOMBROS | F38: 237600 | G38: =+'Items presupuestados'!G10 -> 216000 | H38: 2 | GV38: =IF(D38="","",VLOOKUP(D38,'Items presupuestados'!$B$6:$G$11,6)) -> 216000
C39: 2017-06-05 | D39: 1.8 | E39: =IF(D39="","",VLOOKUP(D39,'Items presupuestados'!B10:C14,2,FALSE)) -> RETIRO DE MATERIAL EXCAVADO | F39: 234036 | G39: =+'Items presupuestados'!G11 -> 212760 | H39: 2
C61: =+'Items presupuestados'!C14 -> ESTRUCTURAS
C62: Fecha | D62: Ítems | E62: Descripción | F62: Importe | G62: Acumulado | H62: Indicador
C63: 2017-06-06 | D63: 2.1 | E63: =IF(D63="","",VLOOKUP(D63,'Items presupuestados'!$B$15:$G$25,2,FALSE)) -> RELLENOS CIMENTACION VIGAS EN MATERIAL GRANULAR | F63: 247500 | G63: =+'Items presupuestados'!G15 -> 225000 | H63: =IF(F63=G63,1,IF(F63>G63,2)) -> 2 | GV63: =IF(D63="","",VLOOKUP(D63,'Items presupuestados'!$B$15:$G$25,6)) -> 225000
C64: 2017-06-06 | D64: 2.2 | E64: =IF(D64="","",VLOOKUP(D64,'Items presupuestados'!$B$15:$G$25,2,FALSE)) -> RELLENOS PIEDRA RAJON PARA ZAPATAS CIMENTACION | F64: 91666.66667 | G64: =+'Items presupuestados'!G16 -> 83333.33333 | H64: =IF(F64=G64,1,IF(F64>G64,2)) -> 2 | GV64: =IF(D64="","",VLOOKUP(D64,'Items presupuestados'!$B$15:$G$25,6)) -> 83333.33333
C65: 2017-06-06 | D65: 2.3 | E65: =IF(D65="","",VLOOKUP(D65,'Items presupuestados'!$B$15:$G$25,2,FALSE)) -> VIGAS DE CIMENTACION 20 X 30 | F65: 784020.6 | G65: =+'Items presupuestados'!G17 -> 712746 | H65: 2 | GV65: =IF(D65="","",VLOOKUP(D65,'Items presupuestados'!$B$15:$G$25,6)) -> 712746
C66: 2017-06-06 | D66: 2.4 | E66: =IF(D66="","",VLOOKUP(D66,'Items presupuestados'!$B$15:$G$25,2,FALSE)) -> PLACA DE CIMENTACION O CONTRAPISO 15 CM | F66: 1683000 | G66: =+'Items presupuestados'!G18 -> 1530000 | H66: 2 | GV66: =IF(D66="","",VLOOKUP(D66,'Items presupuestados'!$B$15:$G$25,6)) -> 1530000
C67: 2017-06-06 | D67: 2.5 | E67: =IF(D67="","",VLOOKUP(D67,'Items presupuestados'!$B$15:$G$25,2,FALSE)) -> DOVELAS EN MUROS 15X15 | F67: 990000 | G67: =+'Items presupuestados'!G19 -> 900000 | H67: 2 | GV67: =IF(D67="","",VLOOKUP(D67,'Items presupuestados'!$B$15:$G$25,6)) -> 900000
C68: 2017-06-06 | D68: 2.6 | E68: =IF(D68="","",VLOOKUP(D68,'Items presupuestados'!$B$15:$G$25,2,FALSE)) -> VIGAS CORONAMIENTO 15X20 | F68: 881716 | G68: =+'Items presupuestados'!G20 -> 801560 | H68: 2 | GV68: =IF(D68="","",VLOOKUP(D68,'Items presupuestados'!$B$15:$G$25,6)) -> 801560
C69: 2017-06-07 | D69: 2.7 | E69: =IF(D69="","",VLOOKUP(D69,'Items presupuestados'!$B$15:$G$25,2,FALSE)) -> DINTELES EN MAMPOSTERIA | F69: 327250 | G69: =+'Items presupuestados'!G21 -> 297500 | H69: 2 | GV69: =IF(D69="","",VLOOKUP(D69,'Items presupuestados'!$B$15:$G$25,6)) -> 297500
C70: 2017-06-07 | D70: 2.8 | E70: =IF(D70="","",VLOOKUP(D70,'Items presupuestados'!$B$15:$G$25,2,FALSE)) -> ZAPATAS DE CONCRETO | F70: 385000 | G70: =+'Items presupuestados'!G22 -> 350000 | H70: 2 | GV70: =IF(D70="","",VLOOKUP(D70,'Items presupuestados'!$B$15:$G$25,6)) -> 350000
C71: 2017-06-07 | D71: 2.9 | E71: =IF(D71="","",VLOOKUP(D71,'Items presupuestados'!$B$15:$G$25,2,FALSE)) -> CONSTRUCCION DE PLACAS DE ENTREPSIO EN SISTEMA PLACA FACIL | F71: 3025000 | G71: =+'Items presupuestados'!G23 -> 2750000 | H71: 2 | GV71: =IF(D71="","",VLOOKUP(D71,'Items presupuestados'!$B$15:$G$25,6)) -> 2750000
C72: 2017-06-08 | D72: 2.1 | E72: =IF(D72="","",VLOOKUP(D72,'Items presupuestados'!$B$15:$G$25,2,FALSE)) -> RELLENOS CIMENTACION VIGAS EN MATERIAL GRANULAR | F72: 1761540 | G72: =+'Items presupuestados'!G24 -> 1601400 | H72: =IF(F72=G72,1,IF(F72>G72,2)) -> 2 | GV72: =IF(D72="","",VLOOKUP(D72,'Items presupuestados'!$B$15:$G$25,6)) -> 225000
C73: 2017-06-09 | D73: 2.11 | E73: =IF(D73="","",VLOOKUP(D73,'Items presupuestados'!$B$15:$G$25,2,FALSE)) -> SUMINISTRO Y COLOCACION ACERO DE REFUERZO PDR GR 60 | F73: 2040500 | G73: =+'Items presupuestados'!G25 -> 1855000 | H73: 2 | GV73: =IF(D73="","",VLOOKUP(D73,'Items presupuestados'!$B$15:$G$25,6)) -> 225000
C100: =+'Items presupuestados'!C28 -> MAMPOSTERIA PAÑETES Y PINTURA
C101: Fecha | D101: Ítems | E101: Descripción | F101: Importe | G101: Acumulado | H101: Indicador
C102: 2017-06-08 | D102: 3.1 | E102: =IF(D102="","",VLOOKUP(D102,'Items presupuestados'!$B$29:$C$34,2,FALSE)) -> MUROS EN BLOQUE # 4 | F102: 710325 | G102: =+'Items presupuestados'!G29 -> 645750 | GV102: =IF(D102="","",VLOOKUP(D102,'Items presupuestados'!B29:G34,6)) -> 645750
C103: 2017-06-08 | D103: 3.2 | E103: =IF(D103="","",VLOOKUP(D103,'Items presupuestados'!$B$29:$C$34,2,FALSE)) -> PAÑETE INTERIOR ESP 3,0 CM | F103: 852390 | G103: =+'Items presupuestados'!G30 -> 774900 | H103: =IF(F103=G103,1,IF(F103>G103,2)) -> 2 | GV103: =IF(D103="","",VLOOKUP(D103,'Items presupuestados'!B30:G35,6)) -> 774900
C104: 2017-06-16 | D104: 3.3 | E104: =IF(D104="","",VLOOKUP(D104,'Items presupuestados'!$B$29:$C$34,2,FALSE)) -> FILOS | F104: 44770 | G104: =+'Items presupuestados'!G31 -> 40700 | H104: 2 | GV104: =IF(D104="","",VLOOKUP(D104,'Items presupuestados'!B31:G35,6)) -> 40700
C105: 2017-06-16 | D105: 3.4 | E105: =IF(D105="","",VLOOKUP(D105,'Items presupuestados'!$B$29:$C$34,2,FALSE)) -> ALISTADO DE PISOS | F105: 577500 | G105: =+'Items presupuestados'!G32 -> 525000 | H105: 2 | GV105: 0
C106: 2017-06-18 | D106: 3.5 | E106: =IF(D106="","",VLOOKUP(D106,'Items presupuestados'!$B$29:$C$34,2,FALSE)) -> IMPERMEABILIZACION TERRAZA CON MEMBRANA | F106: 1430000 | G106: =+'Items presupuestados'!G33 -> 1300000 | H106: 2 | GV106: =IF(D106="","",VLOOKUP(D106,'Items presupuestados'!B33:G37,6)) -> 1300000
C107: 2017-06-18 | D107: 3.6 | E107: =IF(D107="","",VLOOKUP(D107,'Items presupuestados'!$B$29:$C$34,2,FALSE)) -> PINTURA VINILO | F107: 1002573 | G107: =+'Items presupuestados'!G34 -> 911430 | H107: 2 | GV107: =IF(D107="","",VLOOKUP(D107,'Items presupuestados'!B34:G38,6)) -> 911430
C135: =+'Items presupuestados'!C37 -> INSTALACIONES ELECTRICAS
C136: Fecha | D136: Ítems | E136: Descripción | F136: Importe | G136: Acumulado | H136: Indicador
C137: 2017-06-19 | D137: 4.1 | E137: =IF(D137="","",VLOOKUP(D137,'Items presupuestados'!$B$38:$C$41,2,FALSE)) -> PUNTO DE TOMA DOBLE CON INTERRUPTOR | F137: 264000 | G137: =+'Items presupuestados'!G38 -> 240000 | H137: =IF(F137=G137,1,IF(F137>G137,2)) -> 2 | GV137: =IF(D137="","",VLOOKUP(D137,'Items presupuestados'!$B$38:$G$41,6)) -> 240000
C138: 2017-06-19 | D138: 4.2 | E138: =IF(D138="","",VLOOKUP(D138,'Items presupuestados'!$B$38:$C$41,2,FALSE)) -> PUNTO DE ILUMINACION INC BALA HALOGENA 5 VATIOS | F138: 214500 | G138: =+'Items presupuestados'!G39 -> 195000 | H138: 2 | GV138: =IF(D138="","",VLOOKUP(D138,'Items presupuestados'!$B$38:$G$41,6)) -> 195000
C139: 2017-06-20 | D139: 4.3 | E139: =IF(D139="","",VLOOKUP(D139,'Items presupuestados'!$B$38:$C$41,2,FALSE)) -> PUNTO DE VOZ Y DATOS | F139: 93500 | G139: =+'Items presupuestados'!G40 -> 85000 | H139: 2 | GV139: =IF(D139="","",VLOOKUP(D139,'Items presupuestados'!$B$38:$G$41,6)) -> 85000
C140: 2017-06-20 | D140: 4.4 | E140: =IF(D140="","",VLOOKUP(D140,'Items presupuestados'!$B$38:$C$41,2,FALSE)) -> INSTALACION TUBERIA ALIMENTACION 3/4" INCLUIDO REGATAS Y RESANES | F140: 825000 | G140: =+'Items presupuestados'!G41 -> 750000 | H140: 2 | GV140: =IF(D140="","",VLOOKUP(D140,'Items presupuestados'!$B$38:$G$41,6)) -> 750000
C169: =+'Items presupuestados'!C44 -> INSTALACIONES EN TECHOS
C170: Fecha | D170: Ítems | E170: Descripción | F170: Importe | G170: Acumulado | H170: Indicador
C171: 2017-06-21 | D171: 5.1 | E171: =IF(D171="","",VLOOKUP(D171,'Items presupuestados'!$B$45:$C$46,2,FALSE)) -> INSTALACION DE TECHOS EN DRYWALL | F171: 1267200 | G171: =+'Items presupuestados'!G45 -> 1152000 | H171: =IF(F171=G171,1,IF(F171>G171,2)) -> 2 | GV171: =IF(D171="","",VLOOKUP(D171,'Items presupuestados'!$B$45:$G$46,6)) -> 1152000
C172: 2017-06-21 | D172: 5.2 | E172: =IF(D172="","",VLOOKUP(D172,'Items presupuestados'!$B$45:$C$46,2,FALSE)) -> SUMINISTRO E INSTALACION DE CABALLETES EN FIBROCEMENTO TIPO TEJA ESPAÑOLA | F172: 500500 | G172: =+'Items presupuestados'!G46 -> 455000 | H172: 2 | GV172: =IF(D172="","",VLOOKUP(D172,'Items presupuestados'!$B$45:$G$46,6)) -> 455000
C206: =+'Items presupuestados'!C49 -> CARPINTERIA Y OTROS
C207: Fecha | D207: Ítems | E207: Descripción | F207: Importe | G207: Acumulado | H207: Indicador
C208: 2017-06-23 | D208: 6.1 | E208: =IF(D208="","",VLOOKUP(D208,'Items presupuestados'!$B$50:$C$53,2,FALSE)) -> SUMINISTRO E INSTALACION DE PUERTAS DE MADERA 80 CM INCLUIDO MARCO Y CHAPA | F208: 5632000 | G208: =+'Items presupuestados'!G50 -> 5120000 | H208: =IF(F208=G208,1,IF(F208>G208,2)) -> 2 | GV208: =IF(D208="","",VLOOKUP(D208,'Items presupuestados'!B50:G53,6)) -> 5120000
C209: 2017-06-27 | D209: 6.2 | E209: =IF(D209="","",VLOOKUP(D209,'Items presupuestados'!$B$50:$C$53,2,FALSE)) -> VENTANERIA ALUMINIO ANONIZADO (2M X 1M) | F209: 2227500 | G209: =+'Items presupuestados'!G51 -> 2025000 | H209: 2 | GV209: =IF(D209="","",VLOOKUP(D209,'Items presupuestados'!B51:G54,6)) -> 2025000
C210: 2017-06-27 | D210: 6.3 | E210: =IF(D210="","",VLOOKUP(D210,'Items presupuestados'!$B$50:$C$53,2,FALSE)) -> ADECUACION ZONA DE PARQUEADERO INCLUYE EXCAVACION DE HASTA 40 CM DE TERRENO ORGANICO, COLOCACION DE MATERIAL DE ESCOMBRO , MATERIAL DE ESCOMBRO LIMPIO Y RECEBO DE SELLO BASE COMPACTADO Y TERMINACION EN PIEDRA DE RIO | F210: 5843750 | G210: =+'Items presupuestados'!G52 -> 5312500 | H210: 2 | GV210: =IF(D210="","",VLOOKUP(D210,'Items presupuestados'!B52:G54,6)) -> 5312500
C211: 2017-06-30 | D211: 6.4 | E211: =IF(D211="","",VLOOKUP(D211,'Items presupuestados'!$B$50:$C$53,2,FALSE)) -> ESTRUCTURA DE CUBIERTA EN POLICARBONATO O SIMILAR | F211: 618750 | G211: =+'Items presupuestados'!G53 -> 562500 | H211: 2 | GV211: =IF(D211="","",VLOOKUP(D211,'Items presupuestados'!B53:G54,6)) -> 562500

Sheet Detalle por actividad
D3: DETALLE POR ACTIVIDAD Y VALOR
C6: Descripcion | D6: (Todas)
C8: Fechas ejecutadas | D8: Actividad | E8: Totales | CV8: Fecha | CW8: Actividad | CX8: Importe | CY8: Descripcion | CZ8: item
C9: 2017-06-01 | D9: REPLANTEO | E9: 83248 | CV9: =+'Gastos reales'!C34 -> 2017-06-01 | CW9: ='Gastos reales'!E34 -> REPLANTEO | CX9: =+'Gastos reales'!F34 -> 83248 | CY9: PRELIMINARES | CZ9: 1
D10: EXCAVACIONES | E10: 114417.6 | CV10: =+'Gastos reales'!C35 -> 2017-06-01 | CW10: ='Gastos reales'!E35 -> EXCAVACIONES | CX10: =+'Gastos reales'!F35 -> 114417.6 | CY10: PRELIMINARES | CZ10: 1
D11: RELLENOS EN MATERIAL PLACA DE CONTRAPISO AMPLIACION | E11: 470878.65 | CV11: =+'Gastos reales'!C36 -> 2017-06-01 | CW11: ='Gastos reales'!E36 -> RELLENOS EN MATERIAL PLACA DE CONTRAPISO AMPLIACION | CX11: =+'Gastos reales'!F36 -> 470878.65 | CY11: PRELIMINARES | CZ11: 1
C12: 2017-06-05 | D12: DEMOLICION MUROS ESP 12,5 CM | E12: 90574 | CV12: =+'Gastos reales'!C37 -> 2017-06-05 | CW12: ='Gastos reales'!E37 -> DEMOLICION MUROS ESP 12,5 CM | CX12: =+'Gastos reales'!F37 -> 90574 | CY12: PRELIMINARES | CZ12: 1
D13: RETIRO DE ESCOMBROS | E13: 237600 | CV13: =+'Gastos reales'!C38 -> 2017-06-05 | CW13: ='Gastos reales'!E38 -> RETIRO DE ESCOMBROS | CX13: =+'Gastos reales'!F38 -> 237600 | CY13: PRELIMINARES | CZ13: 1
D14: RETIRO DE MATERIAL EXCAVADO | E14: 234036 | CV14: =+'Gastos reales'!C39 -> 2017-06-05 | CW14: ='Gastos reales'!E39 -> RETIRO DE MATERIAL EXCAVADO | CX14: =+'Gastos reales'!F39 -> 234036 | CY14: PRELIMINARES | CZ14: 1
C15: 2017-06-06 | D15: RELLENOS CIMENTACION VIGAS EN MATERIAL GRANULAR | E15: 247500 | CV15: =+'Gastos reales'!C63 -> 2017-06-06 | CW15: ='Gastos reales'!E63 -> RELLENOS CIMENTACION VIGAS EN MATERIAL GRANULAR | CX15: =+'Gastos reales'!F63 -> 247500 | CY15: ESTRUCTURAS | CZ15: 2
D16: PLACA DE CIMENTACION O CONTRAPISO 15 CM | E16: 1683000 | CV16: =+'Gastos reales'!C64 -> 2017-06-06 | CW16: ='Gastos reales'!E64 -> RELLENOS PIEDRA RAJON PARA ZAPATAS CIMENTACION | CX16: =+'Gastos reales'!F64 -> 91666.66667 | CY16: ESTRUCTURAS | CZ16: 2
D17: VIGAS DE CIMENTACION 20 X 30 | E17: 784020.6 | CV17: =+'Gastos reales'!C65 -> 2017-06-06 | CW17: ='Gastos reales'!E65 -> VIGAS DE CIMENTACION 20 X 30 | CX17: =+'Gastos reales'!F65 -> 784020.6 | CY17: ESTRUCTURAS | CZ17: 2
D18: RELLENOS PIEDRA RAJON PARA ZAPATAS CIMENTACION | E18: 91666.66667 | CV18: =+'Gastos reales'!C66 -> 2017-06-06 | CW18: ='Gastos reales'!E66 -> PLACA DE CIMENTACION O CONTRAPISO 15 CM | CX18: =+'Gastos reales'!F66 -> 1683000 | CY18: ESTRUCTURAS | CZ18: 2
D19: VIGAS CORONAMIENTO 15X20 | E19: 881716 | CV19: =+'Gastos reales'!C67 -> 2017-06-06 | CW19: ='Gastos reales'!E67 -> DOVELAS EN MUROS 15X15 | CX19: =+'Gastos reales'!F67 -> 990000 | CY19: ESTRUCTURAS | CZ19: 2
D20: DOVELAS EN MUROS 15X15 | E20: 990000 | CV20: =+'Gastos reales'!C68 -> 2017-06-06 | CW20: ='Gastos reales'!E68 -> VIGAS CORONAMIENTO 15X20 | CX20: =+'Gastos reales'!F68 -> 881716 | CY20: ESTRUCTURAS | CZ20: 2
C21: 2017-06-07 | D21: DINTELES EN MAMPOSTERIA | E21: 327250 | CV21: =+'Gastos reales'!C69 -> 2017-06-07 | CW21: ='Gastos reales'!E69 -> DINTELES EN MAMPOSTERIA | CX21: =+'Gastos reales'!F69 -> 327250 | CY21: ESTRUCTURAS | CZ21: 2
D22: CONSTRUCCION DE PLACAS DE ENTREPSIO EN SISTEMA PLACA FACIL | E22: 3025000 | CV22: =+'Gastos reales'!C70 -> 2017-06-07 | CW22: ='Gastos reales'!E70 -> ZAPATAS DE CONCRETO | CX22: =+'Gastos reales'!F70 -> 385000 | CY22: ESTRUCTURAS | CZ22: 2
D23: ZAPATAS DE CONCRETO | E23: 385000 | CV23: =+'Gastos reales'!C71 -> 2017-06-07 | CW23: ='Gastos reales'!E71 -> CONSTRUCCION DE PLACAS DE ENTREPSIO EN SISTEMA PLACA FACIL | CX23: =+'Gastos reales'!F71 -> 3025000 | CY23: ESTRUCTURAS | CZ23: 2
C24: 2017-06-08 | D24: RELLENOS CIMENTACION VIGAS EN MATERIAL GRANULAR | E24: 1761540 | CV24: =+'Gastos reales'!C72 -> 2017-06-08 | CW24: ='Gastos reales'!E72 -> RELLENOS CIMENTACION VIGAS EN MATERIAL GRANULAR | CX24: =+'Gastos reales'!F72 -> 1761540 | CY24: ESTRUCTURAS | CZ24: 2
D25: PAÑETE INTERIOR ESP 3,0 CM | E25: 852390 | CV25: =+'Gastos reales'!C73 -> 2017-06-09 | CW25: ='Gastos reales'!E73 -> SUMINISTRO Y COLOCACION ACERO DE REFUERZO PDR GR 60 | CX25: =+'Gastos reales'!F73 -> 2040500 | CY25: ESTRUCTURAS | CZ25: 2
D26: MUROS EN BLOQUE # 4 | E26: 710325 | CV26: =+'Gastos reales'!C102 -> 2017-06-08 | CW26: ='Gastos reales'!E102 -> MUROS EN BLOQUE # 4 | CX26: =+'Gastos reales'!F102 -> 710325 | CY26: MAMPOSTERIA PAÑETES Y PINTURA | CZ26: 3
C27: 2017-06-16 | D27: ALISTADO DE PISOS | E27: 577500 | CV27: =+'Gastos reales'!C103 -> 2017-06-08 | CW27: ='Gastos reales'!E103 -> PAÑETE INTERIOR ESP 3,0 CM | CX27: =+'Gastos reales'!F103 -> 852390 | CY27: MAMPOSTERIA PAÑETES Y PINTURA | CZ27: 3
D28: FILOS | E28: 44770 | CV28: =+'Gastos reales'!C104 -> 2017-06-16 | CW28: ='Gastos reales'!E104 -> FILOS | CX28: =+'Gastos reales'!F104 -> 44770 | CY28: MAMPOSTERIA PAÑETES Y PINTURA | CZ28: 3
C29: 2017-06-18 | D29: IMPERMEABILIZACION TERRAZA CON MEMBRANA | E29: 1430000 | CV29: =+'Gastos reales'!C105 -> 2017-06-16 | CW29: ='Gastos reales'!E105 -> ALISTADO DE PISOS | CX29: =+'Gastos reales'!F105 -> 577500 | CY29: MAMPOSTERIA PAÑETES Y PINTURA | CZ29: 3
D30: PINTURA VINILO | E30: 1002573 | CV30: =+'Gastos reales'!C106 -> 2017-06-18 | CW30: ='Gastos reales'!E106 -> IMPERMEABILIZACION TERRAZA CON MEMBRANA | CX30: =+'Gastos reales'!F106 -> 1430000 | CY30: MAMPOSTERIA PAÑETES Y PINTURA | CZ30: 3
C31: 2017-06-19 | D31: PUNTO DE TOMA DOBLE CON INTERRUPTOR | E31: 264000 | CV31: =+'Gastos reales'!C107 -> 2017-06-18 | CW31: ='Gastos reales'!E107 -> PINTURA VINILO | CX31: =+'Gastos reales'!F107 -> 1002573 | CY31: MAMPOSTERIA PAÑETES Y PINTURA | CZ31: 3
D32: PUNTO DE ILUMINACION INC BALA HALOGENA 5 VATIOS | E32: 214500 | CV32: =+'Gastos reales'!C137 -> 2017-06-19 | CW32: ='Gastos reales'!E137 -> PUNTO DE TOMA DOBLE CON INTERRUPTOR | CX32: =+'Gastos reales'!F137 -> 264000 | CY32: INSTALACIONES ELECTRICAS | CZ32: 4
C33: 2017-06-20 | D33: PUNTO DE VOZ Y DATOS | E33: 93500 | CV33: =+'Gastos reales'!C138 -> 2017-06-19 | CW33: ='Gastos reales'!E138 -> PUNTO DE ILUMINACION INC BALA HALOGENA 5 VATIOS | CX33: =+'Gastos reales'!F138 -> 214500 | CY33: INSTALACIONES ELECTRICAS | CZ33: 4
D34: INSTALACION TUBERIA ALIMENTACION 3/4" INCLUIDO REGATAS Y RESANES | E34: 825000 | CV34: =+'Gastos reales'!C139 -> 2017-06-20 | CW34: ='Gastos reales'!E139 -> PUNTO DE VOZ Y DATOS | CX34: =+'Gastos reales'!F139 -> 93500 | CY34: INSTALACIONES ELECTRICAS | CZ34: 4
C35: 2017-06-21 | D35: INSTALACION DE TECHOS EN DRYWALL | E35: 1267200 | CV35: =+'Gastos reales'!C140 -> 2017-06-20 | CW35: ='Gastos reales'!E140 -> INSTALACION TUBERIA ALIMENTACION 3/4" INCLUIDO REGATAS Y RESANES | CX35: =+'Gastos reales'!F140 -> 825000 | CY35: INSTALACIONES ELECTRICAS | CZ35: 4
D36: SUMINISTRO E INSTALACION DE CABALLETES EN FIBROCEMENTO TIPO TEJA ESPAÑOLA | E36: 500500 | CV36: =+'Gastos reales'!C171 -> 2017-06-21 | CW36: ='Gastos reales'!E171 -> INSTALACION DE TECHOS EN DRYWALL | CX36: =+'Gastos reales'!F171 -> 1267200 | CY36: INSTALACIONES EN TECHOS | CZ36: 5
C37: 2017-06-23 | D37: SUMINISTRO E INSTALACION DE PUERTAS DE MADERA 80 CM INCLUIDO MARCO Y CHAPA | E37: 5632000 | CV37: =+'Gastos reales'!C172 -> 2017-06-21 | CW37: ='Gastos reales'!E172 -> SUMINISTRO E INSTALACION DE CABALLETES EN FIBROCEMENTO TIPO TEJA ESPAÑOLA | CX37: =+'Gastos reales'!F172 -> 500500 | CY37: INSTALACIONES EN TECHOS | CZ37: 5
C38: 2017-06-27 | D38: VENTANERIA ALUMINIO ANONIZADO (2M X 1M) | E38: 2227500 | CV38: =+'Gastos reales'!C208 -> 2017-06-23 | CW38: ='Gastos reales'!E208 -> SUMINISTRO E INSTALACION DE PUERTAS DE MADERA 80 CM INCLUIDO MARCO Y CHAPA | CX38: =+'Gastos reales'!F208 -> 5632000 | CY38: CARPINTERIA Y OTROS | CZ38: 6
D39: ADECUACION ZONA DE PARQUEADERO INCLUYE EXCAVACION DE HASTA 40 CM DE TERRENO ORGANICO, COLOCACION DE MATERIAL DE ESCOMBRO , MATERIAL DE ESCOMBRO LIMPIO Y RECEBO DE SELLO BASE COMPACTADO Y TERMINACION EN PIEDRA DE RIO | E39: 5843750 | CV39: =+'Gastos reales'!C209 -> 2017-06-27 | CW39: ='Gastos reales'!E209 -> VENTANERIA ALUMINIO ANONIZADO (2M X 1M) | CX39: =+'Gastos reales'!F209 -> 2227500 | CY39: CARPINTERIA Y OTROS | CZ39: 6
C40: 2017-06-30 | D40: ESTRUCTURA DE CUBIERTA EN POLICARBONATO O SIMILAR | E40: 618750 | CV40: =+'Gastos reales'!C210 -> 2017-06-27 | CW40: ='Gastos reales'!E210 -> ADECUACION ZONA DE PARQUEADERO INCLUYE EXCAVACION DE HASTA 40 CM DE TERRENO ORGANICO, COLOCACION DE MATERIAL DE ESCOMBRO , MATERIAL DE ESCOMBRO LIMPIO Y RECEBO DE SELLO BASE COMPACTADO Y TERMINACION EN PIEDRA DE RIO | CX40: =+'Gastos reales'!F210 -> 5843750 | CY40: CARPINTERIA Y OTROS | CZ40: 6
C41: 2017-06-09 | D41: SUMINISTRO Y COLOCACION ACERO DE REFUERZO PDR GR 60 | E41: 2040500 | CV41: =+'Gastos reales'!C211 -> 2017-06-30 | CW41: ='Gastos reales'!E211 -> ESTRUCTURA DE CUBIERTA EN POLICARBONATO O SIMILAR | CX41: =+'Gastos reales'!F211 -> 618750 | CY41: CARPINTERIA Y OTROS | CZ41: 6
C42: Total general | E42: 35552205.52

Sheet Costos ABC
C2: SEGUIMIENTOS ACTIVIDADES COSTOS ABC
B5: Item | C5: Actividad | D5: Valor del costo | E5: Porcentaje
B6: =IF('Items presupuestados'!B5=0,"",'Items presupuestados'!B5) -> 1 | C6: =VLOOKUP(B6,oculta!A14:B19,2,0) -> PRELIMINARES | D6: =VLOOKUP(B6,oculta!$A$4:$B$9,2,0) -> 1230754.25 | E6: =D6/SUM($D$6:$D$11) -> 0.03461822501
B7: =IF('Items presupuestados'!B14=0,"",'Items presupuestados'!B14) -> 2 | C7: =VLOOKUP(B7,oculta!A15:B20,2,0) -> ESTRUCTURAS | D7: =VLOOKUP(B7,oculta!$A$4:$B$9,2,0) -> 12217193.27 | E7: =D7/SUM($D$6:$D$11) -> 0.3436409384
... 8 more rows

Sheet Estado costos
F2: ESTADO DE COSTOS COMPARATIVOS
C6: =UPPER("Estado integral de costos proyección") -> ESTADO INTEGRAL DE COSTOS PROYECCIÓN | G6: =UPPER("Estado integral de costos ejecutado") -> ESTADO INTEGRAL DE COSTOS EJECUTADO
C7: (+) | D7: Material directo | E7: =+'Distribuccion Presupuesto'!C9+'Distribuccion Presupuesto'!D9+'Distribuccion Presupuesto'!E9+'Distribuccion Presupuesto'!F9+'Distribuccion Presupuesto'!G9+'Distribuccion Presupuesto'!H9 -> 10019257.92 | G7: (+) | H7: Material directo | I7: 10920991.13
C8: (+) | D8: Mano de obra directa | E8: =+'Distribuccion Presupuesto'!C10+'Distribuccion Presupuesto'!D10+'Distribuccion Presupuesto'!E10+'Distribuccion Presupuesto'!F10+'Distribuccion Presupuesto'!G10+'Distribuccion Presupuesto'!H10 -> 19392112.1 | G8: (+) | H8: Mano de obra directa | I8: 21460604
C9: (+) | D9: Costos indirectos de Fabricación | E9: =+'Distribuccion Presupuesto'!C11+'Distribuccion Presupuesto'!D11+'Distribuccion Presupuesto'!E11+'Distribuccion Presupuesto'!F11+'Distribuccion Presupuesto'!G11+'Distribuccion Presupuesto'!H11 -> 2908816.815 | G9: (+) | H9: Costos indirectos de Fabricación | I9: 3170610.328
C10: = | D10: Costo de produccion del periodo | E10: =SUM(E7:E9) -> 32320186.83 | G10: = | H10: Costo de produccion del periodo | I10: =SUM(I7:I9) -> 35552205.46
C11: (+) | D11: Invent. Inicial de trabajo en proceso | E11: 0 | G11: (+) | H11: Invent. Inicial de trabajo en proceso | I11: 0
C12: = | D12: Costo de produccion terminada y vendida | E12: =+E10+E11 -> 32320186.83 | G12: = | H12: Costo de produccion acumulasa | I12: =+I10+I11 -> 35552205.46
C13: (+) | D13: costos de distribucion | E13: =+'Distribuccion Presupuesto'!C17+'Distribuccion Presupuesto'!C18+'Distribuccion Presupuesto'!C19+'Distribuccion Presupuesto'!C20+'Distribuccion Presupuesto'!C21+'Distribuccion Presupuesto'!C22 -> 9775444.307 | G13: (+) | H13: costos de distribucion | I13: =+E13*(1+1.5%) -> 9922075.971
C14: = | D14: Costo total | E14: =+E12+E13 -> 42095631.14 | G14: = | H14: Costo total | I14: =+I12+I13 -> 45474281.43
C15: (+) | D15: Utilidad | E15: =0.2*E14 -> 8419126.228 | G15: (+) | H15: Utilidad | I15: =+E15+AK15 -> 7743396.17 | AK15: -675730.0581
C16: = | D16: Valor proyecto | E16: =+E14+E15 -> 50514757.37 | G16: = | H16: Valor Ejecutado | I16: =+I14+I15 -> 53217677.6
I31: Regreso al menú
D739: PROYECCION | E739: EJECUTADO
C740: Material directo | D740: 10019257.92 | E740: 10920991.13
C741: Mano de obra directa | D741: 19392112.1 | E741: 21460604
C742: Costos indirectos de Fabricación | D742: 2908816.815 | E742: 3170610.328

Sheet oculta (hidden)
A1: Descripcion | B1: (Todas)
A3: items | B3: Suma de Importe
A4: 1 | B4: 1230754.25
A5: 2 | B5: 12217193.27
A6: 3 | B6: 4617558
A7: 4 | B7: 1397000
A8: 5 | B8: 1767700
A9: 6 | B9: 14322000
A10: Total general | B10: 35552205.52
A13: Etiquetas de fila | B13: Descripcion
A14: 1 | B14: PRELIMINARES
A15: 2 | B15: ESTRUCTURAS
A16: 3 | B16: MAMPOSTERIA PAÑETES Y PINTURA
A17: 4 | B17: INSTALACIONES ELECTRICAS
A18: 5 | B18: INSTALACIONES EN TECHOS
A19: 6 | B19: CARPINTERIA Y OTROS
A20: Total general
